fUST/lending_fUST_20260420
["ID","MTS","AMOUNT","RATE_DAILY","PERIOD"]
[420844570,1776624646040,-688.9,0.00018133,2]
[420844571,1776624646050,-445.202766,0.00018139,2]
[420844572,1776624646059,-2150.738,0.00018139,2]
[420844573,1776624646068,-174.74,0.00018189,7]
[420844574,1776624646077,-177.530315,0.0001844,2]
[420844575,1776624646088,-688.9,0.00018447,2]
[420844576,1776624646098,-585.49827493,0.00018516,2]
[420844577,1776624646107,-585.49827492,0.00018517,2]
[420844578,1776624646116,-585.49827492,0.00018517,2]
[420844579,1776624646126,-585.49827492,0.00018518,2]
[420844580,1776624646136,-585.49827492,0.00018518,2]
[420844581,1776624646145,-174.74,0.00018519,7]
[420844582,1776624646154,-587.42427378,0.00018617,2]
[420844583,1776624646164,-500.0,0.00018617,2]
[420844584,1776624646173,-202.62104784,0.00018617,2]
[420844585,1776624646183,-500.0,0.00018617,2]
[420844586,1776624646192,-500.0,0.00018617,2]
[420844587,1776624646202,-500.0,0.00018617,2]
[420844588,1776624646211,-500.0,0.00018617,2]
[420844589,1776624646221,-500.0,0.00018617,2]
[420844590,1776624646230,-500.0,0.00018617,2]
[420844591,1776624646240,-500.0,0.00018617,2]
[420844592,1776624646249,-500.0,0.00018617,2]
[420844593,1776624646259,-334.35270353,0.00018617,2]
[420844594,1776624646269,-500.0,0.00018617,2]
[420844595,1776624646278,-500.0,0.00018617,2]
[420844596,1776624646287,-500.0,0.00018617,2]
[420844597,1776624646297,-500.0,0.00018617,2]
[420844598,1776624646306,-500.0,0.00018617,2]
[420844599,1776624646315,-500.0,0.00018617,2]
[420844600,1776624646325,-500.0,0.00018617,2]
[420844601,1776624646335,-500.0,0.00018617,2]
[420844602,1776624646344,-500.0,0.00018617,2]
[420844603,1776624646353,-500.0,0.00018617,2]
[420844604,1776624646363,-200.0,0.00018617,2]
[420844605,1776624646372,-500.0,0.00018617,2]
[420844606,1776624646381,-500.0,0.00018617,2]
[420844607,1776624646391,-500.0,0.00018617,2]
[420844608,1776624646400,-500.0,0.00018617,2]
[420844609,1776624646409,-188361.412269,0.00018618,2]
[420844610,1776624646418,-49744.77423707,0.00018618,2]
[420844620,1776624936506,201.69,9e-05,30]
[420844623,1776625254410,314.81995821,5e-05,2]
[420844625,1776625317886,-300.0,0.00013424,2]
[420844626,1776625347128,-372.64761037,0.00013424,2]
[420844962,1776625838298,-3415.99999999,0.00013192,2]
[420844973,1776625838513,-1584.00000001,0.00013192,2]
[420844974,1776625838529,-150.0,0.00013326,2]
[420844975,1776625838538,-500.0,0.00013561,2]
[420844976,1776625838548,-500.0,0.00013561,2]
[420844977,1776625838558,-500.0,0.00013561,2]
[420844978,1776625838567,-852.83690464,0.00013699,2]
[420845004,1776625843269,-37.2002615,0.00013699,2]
[420845017,1776625846195,-109.96283386,0.00013699,2]
[420845018,1776625846205,-300.0,0.00013832,2]
[420845019,1776625846215,-300.0,0.00013832,2]
[420845020,1776625846224,-300.0,0.00013832,2]
[420845021,1776625846234,-300.0,0.00013832,2]
[420845022,1776625846244,-300.0,0.00013832,2]
[420845023,1776625846253,-300.0,0.00013832,2]
[420845024,1776625846263,-300.0,0.00013832,2]
[420845025,1776625846273,-300.0,0.00013832,2]
[420845026,1776625846282,-300.0,0.00013832,2]
[420845027,1776625846292,-300.0,0.00013832,2]
[420845028,1776625846302,-300.0,0.00013832,2]
[420845029,1776625846312,-300.0,0.00013832,2]
[420845030,1776625846321,-300.0,0.00013832,2]
[420845031,1776625846332,-300.0,0.00013832,2]
[420845032,1776625846342,-300.0,0.00013832,2]
[420845033,1776625846352,-600.0,0.00014108,2]
[420845034,1776625846361,-320.6914202,0.00015202,2]
[420845035,1776625846371,-177.0,0.00015326,2]
[420845036,1776625846381,-720.0,0.00015518,2]
[420845037,1776625846390,-156.0,0.00016186,2]
[420845038,1776625846400,-1000.0,0.00016451,2]
[420845039,1776625846409,-160.0,0.00016746,2]
[420845040,1776625846419,-7391.07411036,0.00017,2]
[420845041,1776625846428,-864.0,0.0001707,2]
[420845042,1776625846438,-372.33,0.000171,2]
[420845043,1776625846448,-204.0,0.00017326,2]
[420845044,1776625846458,-2209.0,0.00017451,2]
[420845045,1776625846467,-645.0,0.00017451,2]
[420845046,1776625846477,-500.0,0.00017599,2]
[420845047,1776625846486,-500.0,0.00017599,2]
[420845048,1776625846496,-39592.71617076,0.000176,2]
[420845049,1776625846876,-8283.45582917,0.000176,2]
[420845074,1776627032616,-300.5169114,0.00011901,2]
[420845075,1776627032661,-2151.31230992,0.00011901,2]
[420845076,1776627032671,-300.0,0.0001202,2]
[420845077,1776627032681,-642.0,0.0001202,2]
[420845078,1776627032691,-1360.23692433,0.00012021,2]
[420845297,1776627038476,-3639.76307567,0.00012021,2]
[420845298,1776627038486,-589.0,0.00012021,2]
[420845299,1776627038497,-150.0,0.00012203,2]
[420845300,1776627038506,-1000.0,0.00013699,2]
[420845301,1776627038515,-300.0,0.00013832,2]
[420845302,1776627038528,-300.0,0.00013832,2]
[420845303,1776627038538,-300.0,0.00013832,2]
[420845304,1776627038549,-300.0,0.00013832,2]
[420845305,1776627038559,-300.0,0.00013832,2]
[420845306,1776627038568,-300.0,0.00013832,2]
[420845307,1776627038578,-300.0,0.00013832,2]
[420845308,1776627038587,-300.0,0.00013832,2]
[420845309,1776627038596,-300.0,0.00013832,2]
[420845310,1776627038605,-300.0,0.00013832,2]
[420845311,1776627038614,-300.0,0.00013832,2]
[420845312,1776627038624,-300.0,0.00013832,2]
[420845313,1776627038633,-300.0,0.00013832,2]
[420845314,1776627038642,-300.0,0.00013832,2]
[420845315,1776627038652,-300.0,0.00013832,2]
[420845316,1776627038661,-160.3224687,0.00014172,2]
[420845317,1776627038670,-292.00107214,0.00014203,2]
[420845318,1776627038680,-457.0289606,0.00017081,2]
[420845319,1776627038689,-455.6765822,0.00017083,2]
[420845320,1776627038699,-325.2970195,0.00017084,2]
[420845321,1776627038708,-152.0,0.00017609,7]
[420845322,1776627038717,-152.0,0.00017609,7]
[420845323,1776627038727,-152.0,0.00017627,7]
[420845324,1776627038736,-152.0,0.00017627,7]
[420845325,1776627038746,-600.0,0.00017849,2]
[420845326,1776627038756,-325.2695583,0.00017903,2]
[420845327,1776627038766,-456.9361426,0.00017918,2]
[420845328,1776627038775,-2150.738,0.00018069,2]
[420845329,1776627038784,-461.67526834,0.00018158,2]
[420845330,1776627038793,-574.1,0.00018161,2]
[420845331,1776627038803,-738.9187692,0.00018169,2]
[420845332,1776627038814,-6949.5388302,0.00018169,2]
[420845333,1776627038823,-9205.0351898,0.00018169,2]
[420845334,1776627038833,-2559.0834388,0.00018169,2]
[420845335,1776627038843,-200.0,0.0001817,2]
[420845336,1776627038852,-200.0,0.0001817,2]
[420845337,1776627038862,-574.1,0.00018472,2]
[420845338,1776627038871,-500.0,0.00018561,2]
[420845339,1776627038880,-500.0,0.00018561,2]
[420845340,1776627038890,-500.0,0.00018561,2]
[420845341,1776627038899,-500.0,0.00018561,2]
[420845342,1776627038908,-500.0,0.00018561,2]
[420845343,1776627038919,-500.0,0.00018561,2]
[420845344,1776627038928,-500.0,0.00018561,2]
[420845345,1776627038938,-500.0,0.00018561,2]
[420845346,1776627038947,-500.0,0.00018561,2]
[420845347,1776627038957,-500.0,0.00018561,2]
[420845348,1776627038966,-500.0,0.00018561,2]
[420845349,1776627038976,-500.0,0.00018561,2]
[420845350,1776627038985,-470.0,0.00018561,2]
[420845351,1776627038995,-500.0,0.00018561,2]
[420845352,1776627039004,-500.0,0.00018561,2]
[420845353,1776627039013,-238.25122524,0.00018561,2]
[420845354,1776627039023,-337.27567364,0.00018561,2]
[420845355,1776627039032,-500.0,0.00018561,2]
[420845356,1776627039041,-500.0,0.00018561,2]
[420845357,1776627039051,-500.0,0.00018561,2]
[420845358,1776627039060,-524.04689247,0.00018561,2]
[420845359,1776627039069,-500.0,0.00018561,2]
[420845360,1776627039079,-500.0,0.00018561,2]
[420845361,1776627039088,-500.0,0.00018561,2]
[420845362,1776627039097,-623.4393,0.00018561,2]
[420845363,1776627039107,-500.0,0.00018561,2]
[420845364,1776627039116,-500.0,0.00018561,2]
[420845365,1776627039125,-500.0,0.00018561,2]
[420845366,1776627039134,-315.05745554,0.00018561,2]
[420845367,1776627039143,-500.0,0.00018561,2]
[420845368,1776627039152,-500.0,0.00018561,2]
[420845369,1776627039161,-500.0,0.00018561,2]
[420845370,1776627039170,-500.0,0.00018561,2]
[420845371,1776627039179,-500.0,0.00018561,2]
[420845372,1776627039188,-500.0,0.00018561,2]
[420845373,1776627039197,-500.0,0.00018561,2]
[420845374,1776627039206,-411.19699165,0.00018561,2]
[420845375,1776627039215,-500.0,0.00018561,2]
[420845376,1776627039224,-500.0,0.00018561,2]
[420845377,1776627039234,-500.0,0.00018561,2]
[420845378,1776627039243,-500.0,0.00018561,2]
[420845379,1776627039252,-500.0,0.00018561,2]
[420845380,1776627039261,-350.0,0.00018561,2]
[420845381,1776627039270,-64509.39619381,0.00018562,2]
[420845382,1776627039288,-1755.54277787,0.00018562,2]
[420845389,1776627043447,-47417.87188605,0.00018562,2]
[420845431,1776627046422,-2584.35344601,0.00018562,2]
[420845432,1776627046435,-7832.45071136,0.00018562,2]
[420845433,1776627046448,-4635.74901195,0.00018562,2]
[420845437,1776627125667,1000.0,0.00013699,2]
[420845662,1776628238672,-5000.0,0.00013159,2]
[420845664,1776628238681,-191.67497328,0.00013361,2]
[420845666,1776628238691,-1000.0,0.00013699,2]
[420845668,1776628238700,-157.82811557,0.00016752,2]
[420845670,1776628238710,-630.68114981,0.00016752,2]
[420845672,1776628238719,-667.11677716,0.00017634,2]
[420845674,1776628238729,-4148.086591,0.00017716,2]
[420845676,1776628238738,-2150.738,0.0001779,2]
[420845678,1776628238747,-151.0,0.00017919,2]
[420845680,1776628238756,-500.0,0.00018165,5]
[420845682,1776628238766,-478.4,0.00018184,2]
[420845684,1776628238775,-1500.0,0.00018289,2]
[420845686,1776628238785,-1500.0,0.00018304,2]
[420845687,1776628238794,-2230.315306,0.00018338,2]
[420845689,1776628238804,-478.4,0.00018493,2]
[420845691,1776628238813,-3688.3086353,0.00018562,2]
[420845692,1776628238824,-1896.6488771,0.00018562,2]
[420845693,1776628238833,-152.0,0.00018564,7]
[420845694,1776628238842,-1408.0,0.00018638,2]
[420845695,1776628238852,-455.4141204,0.00018742,2]
[420845696,1776628238862,-975.10020027,0.00018794,2]
[420845697,1776628238872,-478.4,0.00018803,2]
[420845698,1776628238882,-500.0,0.00018831,2]
[420845699,1776628238891,-500.0,0.00018831,2]
[420845700,1776628238901,-500.0,0.00018831,2]
[420845701,1776628238910,-500.0,0.00018831,2]
[420845702,1776628238920,-368.38974016,0.00018831,2]
[420845703,1776628238930,-500.0,0.00018831,2]
[420845704,1776628238940,-287.83789415,0.00018831,2]
[420845705,1776628238949,-500.0,0.00018831,2]
[420845706,1776628238959,-411.83282473,0.00018831,2]
[420845707,1776628238968,-500.0,0.00018831,2]
[420845708,1776628238978,-235.9377,0.00018831,2]
[420845709,1776628238989,-500.0,0.00018831,2]
[420845710,1776628238999,-500.0,0.00018831,2]
[420845711,1776628239012,-500.0,0.00018831,2]
[420845712,1776628239022,-257.22860617,0.00018831,2]
[420845713,1776628239032,-500.0,0.00018831,2]
[420845714,1776628239043,-500.0,0.00018831,2]
[420845715,1776628239052,-86377.07731102,0.00018832,2]
[420845716,1776628239074,-1462.748,0.00018832,2]
[420845717,1776628239087,-4197.44656741,0.00018832,2]
[420845722,1776628241037,-300.18062377,0.00018832,2]
[420845730,1776628243505,-650.06680018,0.00018794,2]
[420845731,1776628243516,-7313.73507299,0.00018832,2]
[420845732,1776628243611,-64201.75940793,0.00018832,2]
[420845734,1776628246661,-5000.0,0.00018606,2]
[420845735,1776628246671,-6847.0464,0.00018832,2]
[420845736,1776628246683,-28294.2403483,0.00018832,2]
[420845737,1776628246740,-26247.45158182,0.00018832,2]
[420845738,1776628246750,-174.74,0.00018848,7]
[420845739,1776628246759,-478.75725327,0.0001885,2]
[420845740,1776628246768,-2312.83697232,0.00018886,2]
[420845741,1776628246778,-166.049,0.0001891,2]
[420845742,1776628246787,-153.586,0.0001891,2]
[420845743,1776628246797,-300.0,0.00018932,2]
[420845744,1776628246807,-300.0,0.00018932,2]
[420845745,1776628246816,-300.0,0.00018932,2]
[420845746,1776628246826,-300.0,0.00018932,2]
[420845747,1776628246836,-300.0,0.00018932,2]
[420845748,1776628246845,-300.0,0.00018932,2]
[420845749,1776628246854,-300.0,0.00018932,2]
[420845750,1776628246864,-300.0,0.00018932,2]
[420845751,1776628246874,-300.0,0.00018932,2]
[420845752,1776628246883,-300.0,0.00018932,2]
[420845753,1776628246893,-300.0,0.00018932,2]
[420845754,1776628246902,-300.0,0.00018932,2]
[420845755,1776628246912,-300.0,0.00018932,2]
[420845756,1776628246921,-300.0,0.00018932,2]
[420845757,1776628246930,-300.0,0.00018932,2]
[420845758,1776628246940,-500.0,0.0001909,30]
[420845759,1776628246950,-500.0,0.0001909,30]
[420845760,1776628246959,-933.6747995,0.0001909,30]
[420845761,1776628246969,-500.0,0.0001909,30]
[420845762,1776628246978,-577.9724697,0.0001909,30]
[420845763,1776628246987,-295.2541448,0.0001909,30]
[420845764,1776628246997,-310.0944243,0.0001909,30]
[420845765,1776628247007,-194.0,0.000191,2]
[420845766,1776628247016,-269.6,0.000191,2]
[420845767,1776628247026,-478.4,0.00019112,2]
[420845768,1776628247035,-234.10905906,0.00019173,2]
[420845769,1776628247044,-500.0,0.00019173,2]
[420845770,1776628247053,-500.0,0.00019173,2]
[420845771,1776628247062,-266.56599474,0.00019173,2]
[420845772,1776628247071,-500.0,0.00019173,2]
[420845773,1776628247080,-500.0,0.00019173,2]
[420845774,1776628247094,-500.0,0.00019173,2]
[420845775,1776628247103,-352.666067,0.00019173,2]
[420845776,1776628247114,-500.0,0.00019173,2]
[420845777,1776628247124,-500.0,0.00019173,2]
[420845778,1776628247134,-1000.0,0.00019177,5]
[420845779,1776628247143,-1000.0,0.00019177,6]
[420845780,1776628247153,-222.958,0.00019177,2]
[420845781,1776628247162,-1424.4444,0.00019178,2]
[420845782,1776628247171,-174.75,0.00019178,7]
[420845783,1776628247181,-170.782146,0.00019178,2]
[420845784,1776628247194,-331.07419,0.00019178,2]
[420845785,1776628247204,-500.0,0.00019178,2]
[420845786,1776628247213,-500.0,0.00019178,2]
[420845787,1776628247222,-500.0,0.00019178,2]
[420845788,1776628247235,-500.0,0.00019178,2]
[420845789,1776628247244,-500.0,0.00019178,2]
[420845790,1776628247254,-500.0,0.00019178,2]
[420845791,1776628247263,-500.0,0.00019178,2]
[420845792,1776628247272,-1000.0,0.00019178,2]
[420845793,1776628247282,-500.0,0.00019178,2]
[420845794,1776628247291,-500.0,0.00019178,2]
[420845795,1776628247301,-500.0,0.00019178,2]
[420845796,1776628247311,-500.0,0.00019178,2]
[420845797,1776628247320,-542.70388211,0.00019178,2]
[420845798,1776628247330,-500.0,0.00019178,2]
[420845799,1776628247339,-500.0,0.00019178,2]
[420845800,1776628247348,-539.18834626,0.00019178,2]
[420845801,1776628247357,-500.0,0.00019178,2]
[420845802,1776628247367,-549.09,0.00019178,2]
[420845803,1776628247377,-500.0,0.00019178,2]
[420845804,1776628247386,-1041.62,0.00019178,2]
[420845805,1776628247395,-500.0,0.00019178,2]
[420845806,1776628247404,-500.0,0.00019178,2]
[420845807,1776628247413,-500.0,0.00019178,2]
[420845808,1776628247422,-500.0,0.00019178,2]
[420845809,1776628247431,-500.0,0.00019178,2]
[420845810,1776628247440,-500.0,0.00019178,2]
[420845811,1776628247449,-771.99,0.00019178,2]
[420845812,1776628247460,-500.0,0.00019178,2]
[420845813,1776628247470,-500.0,0.00019178,2]
[420845814,1776628247479,-500.0,0.00019178,2]
[420845815,1776628247488,-500.0,0.00019178,2]
[420845816,1776628247497,-500.0,0.00019178,2]
[420845817,1776628247506,-500.0,0.00019178,2]
[420845818,1776628247515,-500.0,0.00019178,2]
[420845819,1776628247525,-500.0,0.00019178,2]
[420845820,1776628247534,-500.0,0.00019178,2]
[420845821,1776628247543,-500.0,0.00019178,2]
[420845822,1776628247552,-505.73998374,0.00019178,2]
[420845823,1776628247562,-500.0,0.00019178,2]
[420845824,1776628247571,-500.0,0.00019178,2]
[420845825,1776628247580,-500.0,0.00019178,2]
[420845826,1776628247590,-500.0,0.00019178,2]
[420845827,1776628247599,-500.0,0.00019178,2]
[420845828,1776628247609,-500.0,0.00019178,2]
[420845829,1776628247619,-500.0,0.00019178,2]
[420845830,1776628247628,-500.0,0.00019178,2]
[420845831,1776628247638,-500.0,0.00019178,2]
[420845832,1776628247647,-500.0,0.00019178,2]
[420845833,1776628247657,-500.0,0.00019178,2]
[420845834,1776628247666,-504.5030783,0.00019178,2]
[420845835,1776628247675,-500.0,0.00019178,2]
[420845836,1776628247684,-500.0,0.00019178,2]
[420845837,1776628247693,-506.0138205,0.00019178,2]
[420845838,1776628247702,-500.0,0.00019178,2]
[420845839,1776628247711,-500.0,0.00019178,2]
[420845840,1776628247720,-500.0,0.00019178,2]
[420845841,1776628247729,-500.0,0.00019178,2]
[420845842,1776628247738,-500.0,0.00019178,2]
[420845843,1776628247748,-2010.49,0.00019178,2]
[420845844,1776628247757,-500.0,0.00019178,2]
[420845845,1776628247766,-500.0,0.00019178,2]
[420845846,1776628247775,-500.0,0.00019178,2]
[420845847,1776628247784,-500.0,0.00019178,2]
[420845848,1776628247793,-1243.15,0.00019178,2]
[420845849,1776628247803,-500.0,0.00019178,2]
[420845850,1776628247812,-500.0,0.00019178,2]
[420845851,1776628247822,-500.0,0.00019178,2]
[420845852,1776628247831,-500.0,0.00019178,2]
[420845853,1776628247841,-500.0,0.00019178,2]
[420845854,1776628247850,-500.0,0.00019178,2]
[420845855,1776628247859,-500.0,0.00019178,2]
[420845856,1776628247868,-500.0,0.00019178,2]
[420845857,1776628247878,-500.0,0.00019178,2]
[420845858,1776628247888,-500.0,0.00019178,2]
[420845859,1776628247898,-500.0,0.00019178,2]
[420845860,1776628247908,-500.0,0.00019178,2]
[420845861,1776628247918,-500.0,0.00019178,2]
[420845862,1776628247927,-500.0,0.00019178,2]
[420845863,1776628247937,-500.0,0.00019178,2]
[420845864,1776628247946,-500.0,0.00019178,2]
[420845865,1776628247956,-500.0,0.00019178,2]
[420845866,1776628247965,-500.0,0.00019178,2]
[420845867,1776628247974,-500.0,0.00019178,2]
[420845868,1776628247983,-500.0,0.00019178,2]
[420845869,1776628248191,-500.0,0.00019178,2]
[420845870,1776628248202,-151.0,0.00019178,2]
[420845871,1776628248212,-521.54222057,0.00019178,2]
[420845872,1776628248222,-500.0,0.00019178,2]
[420845873,1776628248231,-621.42220123,0.00019178,2]
[420845874,1776628248240,-517.21753274,0.00019178,2]
[420845875,1776628248249,-500.0,0.00019178,2]
[420845876,1776628248258,-500.0,0.00019178,2]
[420845877,1776628248267,-500.0,0.00019178,2]
[420845878,1776628248276,-500.0,0.00019178,2]
[420845879,1776628248285,-656.92,0.00019178,2]
[420845880,1776628248294,-500.0,0.00019178,2]
[420845881,1776628248304,-540.47015129,0.00019178,2]
[420845882,1776628248313,-500.0,0.00019178,2]
[420845883,1776628248322,-500.0,0.00019178,2]
[420845884,1776628248331,-508.66567914,0.00019178,2]
[420845885,1776628248340,-500.0,0.00019178,2]
[420845886,1776628248351,-500.0,0.00019178,2]
[420845887,1776628248360,-500.0,0.00019178,2]
[420845888,1776628248369,-500.0,0.00019178,2]
[420845889,1776628248378,-500.0,0.00019178,2]
[420845890,1776628248386,-500.0,0.00019178,2]
[420845891,1776628248395,-500.0,0.00019178,2]
[420845892,1776628248405,-500.0,0.00019178,2]
[420845893,1776628248414,-1000.0,0.00019178,2]
[420845894,1776628248423,-500.0,0.00019178,2]
[420845895,1776628248432,-500.0,0.00019178,2]
[420845896,1776628248441,-500.0,0.00019178,2]
[420845897,1776628248450,-500.0,0.00019178,2]
[420845898,1776628248460,-500.0,0.00019178,2]
[420845899,1776628248469,-1025.45,0.00019178,2]
[420845900,1776628248478,-500.0,0.00019178,2]
[420845901,1776628248488,-500.0,0.00019178,2]
[420845902,1776628248497,-500.0,0.00019178,2]
[420845903,1776628248506,-500.0,0.00019178,2]
[420845904,1776628248516,-500.0,0.00019178,2]
[420845905,1776628248525,-500.0,0.00019178,2]
[420845906,1776628248534,-504.47292911,0.00019178,2]
[420845907,1776628248543,-1307.36,0.00019178,2]
[420845909,1776628248552,-500.0,0.00019178,2]
[420845911,1776628248561,-513.0615524,0.00019178,2]
[420845912,1776628248571,-1065.97,0.00019178,2]
[420845913,1776628248580,-500.0,0.00019178,2]
[420845915,1776628248590,-500.0,0.00019178,2]
[420845916,1776628248599,-500.0,0.00019178,2]
[420845917,1776628248608,-500.0,0.00019178,2]
[420845918,1776628248617,-500.0,0.00019178,2]
[420845919,1776628248626,-500.0,0.00019178,2]
[420845920,1776628248635,-500.0,0.00019178,2]
[420845921,1776628248645,-500.0,0.00019178,2]
[420845922,1776628248655,-513.00613628,0.00019178,2]
[420845923,1776628248664,-500.0,0.00019178,2]
[420845924,1776628248674,-500.0,0.00019178,2]
[420845925,1776628248683,-520.04589643,0.00019178,2]
[420845926,1776628248693,-508.10570292,0.00019178,2]
[420845927,1776628248702,-500.0,0.00019178,2]
[420845928,1776628248712,-500.0,0.00019178,2]
[420845929,1776628248721,-1030.43,0.00019178,2]
[420845930,1776628248730,-500.0,0.00019178,2]
[420845931,1776628248739,-500.0,0.00019178,2]
[420845932,1776628248748,-500.0,0.00019178,2]
[420845933,1776628248759,-1021.16,0.00019178,2]
[420845934,1776628248769,-500.0,0.00019178,2]
[420845935,1776628248778,-500.0,0.00019178,2]
[420845936,1776628248787,-500.0,0.00019178,2]
[420845937,1776628248796,-500.0,0.00019178,2]
[420845938,1776628248805,-500.0,0.00019178,2]
[420845939,1776628248814,-318.4547572,0.00019178,2]
[420845940,1776628248823,-500.0,0.00019178,2]
[420845941,1776628248831,-500.0,0.00019178,2]
[420845942,1776628248840,-500.0,0.00019178,2]
[420845943,1776628248849,-2074.58,0.00019178,2]
[420845944,1776628248859,-500.0,0.00019178,2]
[420845945,1776628248869,-500.0,0.00019178,2]
[420845946,1776628248879,-2127.18,0.00019178,2]
[420845947,1776628248888,-500.0,0.00019178,2]
[420845948,1776628248898,-503.4297508,0.00019178,2]
[420845949,1776628248907,-500.0,0.00019178,2]
[420845950,1776628248915,-500.0,0.00019178,2]
[420845951,1776628248924,-500.0,0.00019178,2]
[420845952,1776628248933,-527.78618872,0.00019178,2]
[420845953,1776628248943,-500.0,0.00019178,2]
[420845954,1776628248952,-500.0,0.00019178,2]
[420845955,1776628248962,-500.0,0.00019178,2]
[420845956,1776628248971,-500.0,0.00019178,2]
[420845957,1776628248980,-500.0,0.00019178,2]
[420845958,1776628248989,-500.0,0.00019178,2]
[420845960,1776628248998,-500.0,0.00019178,2]
[420845962,1776628249008,-500.0,0.00019178,2]
[420845964,1776628249017,-500.0,0.00019178,2]
[420845965,1776628249026,-500.0,0.00019178,2]
[420845966,1776628249035,-2526.52,0.00019178,2]
[420845967,1776628249044,-521.70987125,0.00019178,2]
[420845968,1776628249053,-558.4,0.00019178,2]
[420845969,1776628249062,-500.0,0.00019178,2]
[420845970,1776628249072,-500.0,0.00019178,2]
[420845971,1776628249081,-1059.29,0.00019178,2]
[420845972,1776628249090,-500.0,0.00019178,2]
[420845973,1776628249099,-1661.13,0.00019178,2]
[420845974,1776628249109,-1019.88,0.00019178,2]
[420845975,1776628249118,-2527.77,0.00019178,2]
[420845976,1776628249128,-1268.85,0.00019178,2]
[420845977,1776628249137,-277.96846747,0.00019178,2]
[420845978,1776628249146,-599.67656817,0.00019178,2]
[420845979,1776628249155,-500.0,0.00019178,2]
[420845980,1776628249164,-500.0,0.00019178,2]
[420845981,1776628249174,-702.46,0.00019178,2]
[420845982,1776628249184,-500.0,0.00019178,2]
[420845983,1776628249193,-526.72608747,0.00019178,2]
[420845984,1776628249202,-500.0,0.00019178,2]
[420845985,1776628249212,-500.0,0.00019178,2]
[420845986,1776628249222,-500.0,0.00019178,2]
[420845987,1776628249232,-500.0,0.00019178,2]
[420845988,1776628249241,-200.0,0.00019178,2]
[420845989,1776628249250,-500.0,0.00019178,2]
[420845990,1776628249260,-1613.29,0.00019178,2]
[420845991,1776628249270,-500.0,0.00019178,2]
[420845992,1776628249279,-500.0,0.00019178,2]
[420845993,1776628249289,-500.0,0.00019178,2]
[420845994,1776628249298,-500.0,0.00019178,2]
[420845995,1776628249307,-578.31134151,0.00019178,2]
[420845996,1776628249316,-500.0,0.00019178,2]
[420845997,1776628249327,-1955.51,0.00019178,2]
[420845998,1776628249336,-579.75,0.00019178,2]
[420845999,1776628249346,-1366.51,0.00019178,2]
[420846000,1776628249360,-662.82,0.00019178,2]
[420846001,1776628249369,-500.0,0.00019178,2]
[420846002,1776628249378,-500.0,0.00019178,2]
[420846003,1776628249388,-500.0,0.00019178,2]
[420846004,1776628249397,-916.51,0.00019178,2]
[420846005,1776628249406,-1128.17,0.00019178,2]
[420846006,1776628249415,-1857.06,0.00019178,2]
[420846007,1776628249424,-500.0,0.00019178,2]
[420846008,1776628249433,-1607.79,0.00019178,2]
[420846009,1776628249442,-500.0,0.00019178,2]
[420846010,1776628249453,-776.89,0.00019178,2]
[420846011,1776628249464,-342.702099,0.00019178,2]